2CCN - Level 2 Cost Centre Name,,9CCN - Level 9 Cost Centre Name,9CCC - Level 9 Cost Centre Code,9AN - Level 9 Account Name,9AC - Level 9 Account Code,Date posted,Date of transaction,Merchant Name,Merchant City,Originating Account Name,Originating Account Number,MCC/SIC Code,MCC Description,Original Amount,Currency,Conversion Rate,Billed Amount,Debit Credit,Reference Number,Statement Cycle,Account Name
Gloucester City Council,23UE,TIC STAMP SALES,LT102,POSTAGES,5400,2016-08-12,2016-08-11,ROYAL MAIL,EDINBURGH,REDACTED,471*********4015,9402,POSTAGE STAMPS,321,Pound Sterling (826),1,321,Debit,74678586225050267341343,2016-09-02,GLOUCESTER CC
Gloucester City Council,23UE,TIC THEATRE TICKET SALES,LT107,MATERIALS FOR SALE,5080,2016-08-19,2016-08-18,PRINTSOMECOM,BARCELONA,REDACTED,471*********4015,5999,MISCELLANEOUS AND RETAIL STORES,209.21,Pound Sterling (826),1,209.21,Debit,74143616232002099060040,2016-09-02,GLOUCESTER CC
Gloucester City Council,23UE,TIC THEATRE TICKET SALES,LT107,MATERIALS FOR SALE,5080,2016-08-19,2016-08-18,PRINTSOMECOM,BARCELONA,REDACTED,471*********4015,5999,MISCELLANEOUS AND RETAIL STORES,40.2,Pound Sterling (826),1,40.2,Debit,74143616232002099060057,2016-09-02,GLOUCESTER CC
Gloucester City Council,23UE,HOMELESSNESS,CH120,BOARD AND LODGING,5515,2016-08-08,2016-08-05,THE LITTLE THATCH,GLOUCESTER,REDACTED,471*********1443,5812,EATING PLACES  RESTAURANTS,1440,Pound Sterling (826),1,1440,Debit,74579156218008561068013,2016-09-02,GLOUCESTER CC
Gloucester City Council,23UE,HOMELESSNESS,CH120,BOARD AND LODGING,5515,2016-08-09,2016-08-08,AMERISUITES,GLOUCESTER,REDACTED,471*********1443,3514,AMERISUITES,640,Pound Sterling (826),1,640,Debit,74579156222003961875590,2016-09-02,GLOUCESTER CC
Gloucester City Council,23UE,HOMELESSNESS,CH120,BOARD AND LODGING,5515,2016-08-16,2016-08-15,AMERISUITES,GLOUCESTER,REDACTED,471*********1443,3514,AMERISUITES,640,Pound Sterling (826),1,640,Debit,74579156229009264575491,2016-09-02,GLOUCESTER CC
Gloucester City Council,23UE,HOMELESSNESS,CH120,OFFICE EQUIPMENT <5000,5010,2016-08-18,2016-08-17,CRAFTCREATIONS.COM,01992 781900,REDACTED,471*********1443,5947,GIFT  CARD  NOVELTY  AND SOUVENIR SHOPS,17.75,Pound Sterling (826),1,17.75,Debit,74579156231002075991599,2016-09-02,GLOUCESTER CC
Gloucester City Council,23UE,HOMELESSNESS,CH120,BOARD AND LODGING,5515,2016-08-23,2016-08-22,AMERISUITES,GLOUCESTER,REDACTED,471*********1443,3514,AMERISUITES,640,Pound Sterling (826),1,640,Debit,74579156236006864539548,2016-09-02,GLOUCESTER CC
Gloucester City Council,23UE,HOMELESSNESS,CH120,BOARD AND LODGING,5515,2016-08-24,2016-08-23,TRAVELODGE WEBSITE,RESERVATION,REDACTED,471*********1443,3615,TRAVELODGE,501,Pound Sterling (826),1,501,Debit,74424716236298140734971,2016-09-02,GLOUCESTER CC
Gloucester City Council,23UE,HOMELESSNESS,CH120,BOARD AND LODGING,5515,2016-08-25,2016-08-24,TRAVELODGE WEBSITE,RESERVATION,REDACTED,471*********1443,3615,TRAVELODGE,838,Pound Sterling (826),1,838,Debit,74424716237298153023394,2016-09-02,GLOUCESTER CC
Gloucester City Council,23UE,HOMELESSNESS,CH120,BOARD AND LODGING,5515,2016-08-26,2016-08-25,TRAVELODGE WEBSITE,RESERVATION,REDACTED,471*********1443,3615,TRAVELODGE,431,Pound Sterling (826),1,431,Debit,74424716238298165167220,2016-09-02,GLOUCESTER CC
Gloucester City Council,23UE,HOMELESSNESS,CH120,BOARD AND LODGING,5515,2016-08-26,2016-08-25,TRAVELODGE WEBSITE,RESERVATION,REDACTED,471*********1443,3615,TRAVELODGE,264,Pound Sterling (826),1,264,Debit,74424716238298165245331,2016-09-02,GLOUCESTER CC
Gloucester City Council,23UE,HOMELESSNESS,CH120,BOARD AND LODGING,5515,2016-08-31,2016-08-30,TRAVELODGE WEBSITE,RESERVATION,REDACTED,471*********1443,3615,TRAVELODGE,416,Pound Sterling (826),1,416,Debit,74424716243298128494631,2016-09-02,GLOUCESTER CC
Gloucester City Council,23UE,HOMELESSNESS,CH120,BOARD AND LODGING,5515,2016-08-31,2016-08-30,TRAVELODGE WEBSITE,RESERVATION,REDACTED,471*********1443,3615,TRAVELODGE,481,Pound Sterling (826),1,481,Debit,74424716243298128496826,2016-09-02,GLOUCESTER CC
Gloucester City Council,23UE,HOMELESSNESS,CH120,BOARD AND LODGING,5515,2016-08-31,2016-08-30,TRAVELODGE WEBSITE,RESERVATION,REDACTED,471*********1443,3615,TRAVELODGE,508,Pound Sterling (826),1,508,Debit,74424716243298128499648,2016-09-02,GLOUCESTER CC
Gloucester City Council,23UE,HOMELESSNESS,CH120,BOARD AND LODGING,5515,2016-09-01,2016-08-31,TRAVELODGE WEBSITE,RESERVATION,REDACTED,471*********1443,3615,TRAVELODGE,497,Pound Sterling (826),1,497,Debit,74424716244298141248815,2016-09-02,GLOUCESTER CC
Gloucester City Council,23UE,HOMELESSNESS,CH120,BOARD AND LODGING,5515,2016-09-02,2016-09-01,TRAVELODGE WEBSITE,RESERVATION,REDACTED,471*********1443,3615,TRAVELODGE,456,Pound Sterling (826),1,456,Debit,74424716245298151720983,2016-09-02,GLOUCESTER CC
Gloucester City Council,23UE,HOMELESSNESS,CH120,BOARD AND LODGING,5515,2016-09-02,2016-09-01,TRAVELODGE WEBSITE,RESERVATION,REDACTED,471*********1443,3615,TRAVELODGE,932,Pound Sterling (826),1,932,Debit,74424716245298151722146,2016-09-02,GLOUCESTER CC
Gloucester City Council,23UE,RETAIL MARKET - LANDLORD,HM300,CLEANING / DOMESTIC EQUIPMENT,5011,2016-08-08,2016-08-06,B & Q 1174,STROUD,REDACTED,471*********8476,5211,LUMBER AND BUILDING MATERIALS STORES,93.88,Pound Sterling (826),1,93.88,Debit,74579156220002873313429,2016-09-02,GLOUCESTER CC
Gloucester City Council,23UE,RETAIL MARKET - LANDLORD,HM300,CLEANING / DOMESTIC EQUIPMENT,5011,2016-08-08,2016-08-06,B & Q 1174,STROUD,REDACTED,471*********8476,5211,LUMBER AND BUILDING MATERIALS STORES,5,Pound Sterling (826),1,5,Debit,74579156220003473313504,2016-09-02,GLOUCESTER CC
Gloucester City Council,23UE,RETAIL MARKET - LANDLORD,HM300,CLEANING / DOMESTIC EQUIPMENT,5011,2016-08-08,2016-08-06,B & Q 1174,STROUD,REDACTED,471*********8476,5211,LUMBER AND BUILDING MATERIALS STORES,-11.82,Pound Sterling (826),1,-11.82,Credit,74579156220003273313480,2016-09-02,GLOUCESTER CC
Gloucester City Council,23UE,HMO LICENCES,HE520,OPERATIONAL EQUIPMENT <5000,5012,2016-08-10,2016-08-09,Amazon UK Retail,AMAZON.CO.UK,REDACTED,471*********8476,5969,ALL OTHER DIRECT MARKETERS,87.42,Pound Sterling (826),1,87.42,Debit,74313226222000037324035,2016-09-02,GLOUCESTER CC
Gloucester City Council,23UE,HOUSING STRATEGY & ENABLING,CH110,FEES FOR SERVICES RECEIVED,5350,2016-08-25,2016-08-19,WWW.HOUSING.ORG.UK,LONDON WC1V,REDACTED,471*********3663,8999,PROFESSIONAL SERVICES NOT ELSEWHERE CLASSIFIED,43.9,Pound Sterling (826),1,43.9,Debit,74085326238264000004315,2016-09-02,GLOUCESTER CC
Gloucester City Council,23UE,FOLK MUSEUM,LM210,EVENTS,5952,2016-08-10,2016-08-09,PAYPAL *DAVEKKI LTD,1945232300,REDACTED,471*********9523,5945,HOBBY TOY  AND GAME SHOPS,19.99,Pound Sterling (826),1,19.99,Debit,74998866222631181280840,2016-09-02,GLOUCESTER CC
Gloucester City Council,23UE,CITY MUSEUM AND ART GALLERY,LM200,EXHIBITS AND COLLECTIONS,5038,2016-08-10,2016-08-09,VISTAPR*VistaPrint.uk,080-0028825,REDACTED,471*********9523,2741,MISCELLANEOUS PUBLISHING & PRINTING,86.65,Pound Sterling (826),1,86.65,Debit,74313226222000034471987,2016-09-02,GLOUCESTER CC
Gloucester City Council,23UE,FOLK MUSEUM,LM210,PUBLICATIONS FOR SALE,5064,2016-08-12,2016-08-11,HANCOCK CASH AND CARRY LT,LOUGHBOROUGH,REDACTED,471*********9523,5300,WHOLESALE CLUBS,243.24,Pound Sterling (826),1,243.24,Debit,74463656224892254252608,2016-09-02,GLOUCESTER CC
Gloucester City Council,23UE,FOLK MUSEUM,LM210,EXHIBITS AND COLLECTIONS,5038,2016-08-18,2016-08-17,WWW.SOUNDLEISURE.COM,INTERNET,REDACTED,471*********9523,5732,ELECTRONIC SALES,12,Pound Sterling (826),1,12,Debit,74916776231090094337131,2016-09-02,GLOUCESTER CC
Gloucester City Council,23UE,CITY MUSEUM CATERING,LM202,CATERING PROVISIONS -FOOD,5110,2016-08-18,2016-08-17,BOOKER LIMITED GLOUCESTER,GLOUCESTER,REDACTED,471*********9523,5811,CATERERS,45.74,Pound Sterling (826),1,45.74,Debit,74463666230922305597874,2016-09-02,GLOUCESTER CC
Gloucester City Council,23UE,CITY MUSEUM AND ART GALLERY,LM200,EXHIBITS AND COLLECTIONS,5038,2016-08-18,2016-08-17,JUSTGIVING.COM,ONLINE DONATI,REDACTED,471*********9523,8398,CHARITABLE AND SOCIAL SERVICE ORGANIZATIONS,75,Pound Sterling (826),1,75,Debit,74916776231090271849429,2016-09-02,GLOUCESTER CC
Gloucester City Council,23UE,FOLK MUSEUM,LM210,PUBLICATIONS FOR SALE,5064,2016-08-18,2016-08-17,Amazon UK Marketplace,800-279-6620,REDACTED,471*********9523,5999,MISCELLANEOUS AND RETAIL STORES,19.94,Pound Sterling (826),1,19.94,Debit,74313226230000417948627,2016-09-02,GLOUCESTER CC
Gloucester City Council,23UE,FOLK MUSEUM,LM210,PUBLICATIONS FOR SALE,5064,2016-08-18,2016-08-17,Amazon UK Marketplace,800-279-6620,REDACTED,471*********9523,5999,MISCELLANEOUS AND RETAIL STORES,29.9,Pound Sterling (826),1,29.9,Debit,74313226230000445772056,2016-09-02,GLOUCESTER CC
Gloucester City Council,23UE,FOLK MUSEUM,LM210,PUBLICATIONS FOR SALE,5064,2016-08-18,2016-08-17,Amazon UK Marketplace,800-279-6620,REDACTED,471*********9523,5999,MISCELLANEOUS AND RETAIL STORES,18.81,Pound Sterling (826),1,18.81,Debit,74313226230000562756866,2016-09-02,GLOUCESTER CC
Gloucester City Council,23UE,FOLK MUSEUM,LM210,PUBLICATIONS FOR SALE,5064,2016-08-19,2016-08-18,Amazon UK Marketplace,800-279-6620,REDACTED,471*********9523,5942,BOOK STORES,31.1,Pound Sterling (826),1,31.1,Debit,74313226231000877747757,2016-09-02,GLOUCESTER CC
Gloucester City Council,23UE,FOLK MUSEUM,LM210,OPERATIONAL MATERIALS,5070,2016-08-23,2016-08-22,FASTHOSTS INTERNET,3330142700,REDACTED,471*********9523,4816,COMPUTER NETWORK/INFORMATION SERVICES,8.39,Pound Sterling (826),1,8.39,Debit,74830506235295310029939,2016-09-02,GLOUCESTER CC
Gloucester City Council,23UE,CITY MUSEUM AND ART GALLERY,LM200,EXHIBITS AND COLLECTIONS,5038,2016-08-25,2016-08-24,Amazon UK Marketplace,800-279-6620,REDACTED,471*********9523,5999,MISCELLANEOUS AND RETAIL STORES,40.85,Pound Sterling (826),1,40.85,Debit,74313226237000185212696,2016-09-02,GLOUCESTER CC
Gloucester City Council,23UE,FOLK MUSEUM,LM210,EXHIBITS AND COLLECTIONS,5038,2016-08-29,2016-08-26,POUNDSTRETCHER 131,GLOUCESTER,REDACTED,471*********9523,5714,WINDOW COVERING  UPHOLSTERY AND DRAPERY STORES,4.97,Pound Sterling (826),1,4.97,Debit,74019476240469002079021,2016-09-02,GLOUCESTER CC
Gloucester City Council,23UE,CITY MUSEUM AND ART GALLERY,LM200,EXHIBITS AND COLLECTIONS,5038,2016-08-29,2016-08-27,TESCO STORE 2581,GLOUCESTER,REDACTED,471*********9523,5411,GROCERY STORES  SUPERMARKETS,32.9,Pound Sterling (826),1,32.9,Debit,74697056241060619362328,2016-09-02,GLOUCESTER CC
Gloucester City Council,23UE,BLACKFRIARS,LA609,CATERING PROVISIONS -LIQUOR,5111,2016-08-03,2016-08-02,WWW.PURITYBREWING.COM,INTERNET,REDACTED,471*********2470,5921,PACKAGE STORES  BEER  LIQUOR,120.8,Pound Sterling (826),1,120.8,Debit,74745096216080216673181,2016-09-02,GLOUCESTER CC
Gloucester City Council,23UE,GUILDHALL BAR AND CAF�,LA210,OPERATIONAL EQUIPMENT <5000,5012,2016-08-03,2016-08-02,GLASSJACKS LTD,EASTLEIGH,REDACTED,471*********2470,5950,GLASSWARE AND CRYSTAL STORES,88.19,Pound Sterling (826),1,88.19,Debit,74463656215892163517167,2016-09-02,GLOUCESTER CC
Gloucester City Council,23UE,GUILDHALL BAR AND CAF�,LA210,CATERING PROVISIONS -FOOD,5110,2016-08-05,2016-08-04,ASDA SUPERSTORE,GLOUCESTER,REDACTED,471*********2470,5411,GROCERY STORES  SUPERMARKETS,17.45,Pound Sterling (826),1,17.45,Debit,74698176218000248586719,2016-09-02,GLOUCESTER CC
Gloucester City Council,23UE,GUILDHALL BAR AND CAF�,LA210,CATERING PROVISIONS -FOOD,5110,2016-08-05,2016-08-04,HOLLAND & BARRETT,GLOUCESTER,REDACTED,471*********2470,5999,MISCELLANEOUS AND RETAIL STORES,9.95,Pound Sterling (826),1,9.95,Debit,74579156218001074320120,2016-09-02,GLOUCESTER CC
Gloucester City Council,23UE,GUILDHALL BAR AND CAF�,LA210,OPERATIONAL EQUIPMENT <5000,5012,2016-08-05,2016-08-04,POUNDWORLD RETAIL,GLOUCESTER,REDACTED,471*********2470,5310,DISCOUNT STORES,12,Pound Sterling (826),1,12,Debit,74579156218009678925566,2016-09-02,GLOUCESTER CC
Gloucester City Council,23UE,GUILDHALL BAR AND CAF�,LA210,OPERATIONAL EQUIPMENT <5000,5012,2016-08-05,2016-08-04,GLASSJACKS LTD,EASTLEIGH,REDACTED,471*********2470,5950,GLASSWARE AND CRYSTAL STORES,29.75,Pound Sterling (826),1,29.75,Debit,74463656217892184775479,2016-09-02,GLOUCESTER CC
Gloucester City Council,23UE,GUILDHALL BAR AND CAF�,LA210,CATERING PROVISIONS -FOOD,5110,2016-08-08,2016-08-05,ALDI,GLOUCESTER,REDACTED,471*********2470,5411,GROCERY STORES  SUPERMARKETS,14.28,Pound Sterling (826),1,14.28,Debit,74019476219495001024632,2016-09-02,GLOUCESTER CC
Gloucester City Council,23UE,GUILDHALL BAR AND CAF�,LA210,CATERING PROVISIONS -FOOD,5110,2016-08-16,2016-08-15,TESCO STORE 3074,QUEDGELEY,REDACTED,471*********2470,5411,GROCERY STORES  SUPERMARKETS,46.82,Pound Sterling (826),1,46.82,Debit,74698086229070235925954,2016-09-02,GLOUCESTER CC
Gloucester City Council,23UE,GUILDHALL BAR AND CAF�,LA210,CATERING PROVISIONS -FOOD,5110,2016-08-17,2016-08-16,ASDA SUPERSTORE,GLOUCESTER,REDACTED,471*********2470,5411,GROCERY STORES  SUPERMARKETS,47.67,Pound Sterling (826),1,47.67,Debit,74698176230080130442282,2016-09-02,GLOUCESTER CC
Gloucester City Council,23UE,GUILDHALL BAR AND CAF�,LA210,CATERING PROVISIONS -FOOD,5110,2016-08-17,2016-08-16,ASDA SUPERSTORE,GLOUCESTER,REDACTED,471*********2470,5411,GROCERY STORES  SUPERMARKETS,9.37,Pound Sterling (826),1,9.37,Debit,74698176230080130474608,2016-09-02,GLOUCESTER CC
Gloucester City Council,23UE,GUILDHALL BAR AND CAF�,LA210,CATERING PROVISIONS -FOOD,5110,2016-08-17,2016-08-16,WM MORRISON STORE,575 GLOUCESTE,REDACTED,471*********2470,5411,GROCERY STORES  SUPERMARKETS,14.84,Pound Sterling (826),1,14.84,Debit,74579156230000878335536,2016-09-02,GLOUCESTER CC
Gloucester City Council,23UE,GUILDHALL BAR AND CAF�,LA210,CATERING PROVISIONS -FOOD,5110,2016-08-24,2016-08-23,ICELAND,GLOUCESTER,REDACTED,471*********2470,5411,GROCERY STORES  SUPERMARKETS,13,Pound Sterling (826),1,13,Debit,74698166237030127808460,2016-09-02,GLOUCESTER CC
Gloucester City Council,23UE,MANAGING DIRECTOR,RE100,PUBLIC TRANSPORTATION,4061,2016-08-05,2016-08-04,TRAINLINE,RAIL TICKETS,REDACTED,471*********4841,4112,PASSENGER RAILWAYS,72.01,Pound Sterling (826),1,72.01,Debit,74998866217630055866772,2016-09-02,GLOUCESTER CC
Gloucester City Council,23UE,CONTACT CENTRE,RB300,OFFICE EQUIPMENT <5000,5010,2016-08-17,2016-08-16,WWW.BAKERROSS.CO.UK,LONDON E17,REDACTED,471*********4841,5970,ARTIST SUPPLY STORES  CRAFT SHOPS,21.98,Pound Sterling (826),1,21.98,Debit,74085326230465000548973,2016-09-02,GLOUCESTER CC
Gloucester City Council,23UE,CONTACT CENTRE,RB300,OPERATIONAL EQUIPMENT <5000,5012,2016-08-17,2016-08-16,WWW.STAPLES.CO.UK,0333 300 1334,REDACTED,471*********4841,5943,STATIONERY  OFFICE AND SCHOOL SUPPLY STO,20.99,Pound Sterling (826),1,20.99,Debit,74579156230002472500002,2016-09-02,GLOUCESTER CC
Gloucester City Council,23UE,CONTACT CENTRE,RB300,OPERATIONAL EQUIPMENT <5000,5012,2016-08-19,2016-08-18,Amazon UK Marketplace,800-279-6620,REDACTED,471*********4841,5999,MISCELLANEOUS AND RETAIL STORES,17.99,Pound Sterling (826),1,17.99,Debit,74313226231000004455837,2016-09-02,GLOUCESTER CC
Gloucester City Council,23UE,MEMBERS SUPPORT,RC300,PUBLIC TRANSPORTATION,4061,2016-08-22,2016-08-19,TRAINLINE,RAIL TICKETS,REDACTED,471*********4841,4112,PASSENGER RAILWAYS,72.01,Pound Sterling (826),1,72.01,Debit,74998866232633455187113,2016-09-02,GLOUCESTER CC
Gloucester City Council,23UE,GUILDHALL EVENTS,LA200,FEES FOR SERVICES RECEIVED,5350,2016-08-03,2016-08-02,MIPERMIT PARKING-DOM,INTERNET,REDACTED,471*********6962,7523,AUTOMOBILE PARKING LOTS AND GARAGES,10,Pound Sterling (826),1,10,Debit,74745106216080086484054,2016-09-02,GLOUCESTER CC
Gloucester City Council,23UE,GLOUCESTER GUILDHALL,LA100,GENERAL REPAIR/MAINT BUILDINGS,3000,2016-08-03,2016-08-02,B & Q 1179,GLOUCESTER,REDACTED,471*********6962,5211,LUMBER AND BUILDING MATERIALS STORES,14.95,Pound Sterling (826),1,14.95,Debit,74579156216008278109359,2016-09-02,GLOUCESTER CC
Gloucester City Council,23UE,GLOUCESTER GUILDHALL,LA100,CLOTHING,5200,2016-08-04,2016-08-03,WORKWEAR EXPRESS LIMITED,DURHAM,REDACTED,471*********6962,5137,MEN'S WOMEN'S AND CHILDREN'S UNIFORMS AN,311.66,Pound Sterling (826),1,311.66,Debit,74463656216892174422075,2016-09-02,GLOUCESTER CC
Gloucester City Council,23UE,GUILDHALL EVENTS,LA200,FEES FOR SERVICES RECEIVED,5350,2016-08-05,2016-08-04,MIPERMIT PARKING-DOM,INTERNET,REDACTED,471*********6962,7523,AUTOMOBILE PARKING LOTS AND GARAGES,10,Pound Sterling (826),1,10,Debit,74745106218000101088381,2016-09-02,GLOUCESTER CC
Gloucester City Council,23UE,GLOUCESTER GUILDHALL,LA100,MAINTENANCE OF EQUIPMENT,5030,2016-08-05,2016-08-04,PAYPAL *STUDIOSPARE,35314369001,REDACTED,471*********6962,5732,ELECTRONIC SALES,120.41,Pound Sterling (826),1,120.41,Debit,74998866217630053178048,2016-09-02,GLOUCESTER CC
Gloucester City Council,23UE,GLOUCESTER GUILDHALL,LA100,FEES FOR SERVICES RECEIVED,5350,2016-08-08,2016-08-05,THE GLOUCESTER COBBLER,GLOUCESTER,REDACTED,471*********6962,7251,SHOE REPAIR SHOPS  SHOE SHINE PARLORS & HAT CLEANING SHOPS,14.25,Pound Sterling (826),1,14.25,Debit,74463656218922188566597,2016-09-02,GLOUCESTER CC
Gloucester City Council,23UE,GLOUCESTER GUILDHALL,LA100,GENERAL REPAIR/MAINT BUILDINGS,3000,2016-08-09,2016-08-08,ARGOS LTD,GLOUCESTER,REDACTED,471*********6962,5310,DISCOUNT STORES,29.99,Pound Sterling (826),1,29.99,Debit,74579156222002573292046,2016-09-02,GLOUCESTER CC
Gloucester City Council,23UE,BLACKFRIARS,LA609,FEES FOR SERVICES RECEIVED,5350,2016-08-10,2016-08-09,HOMESENSE,GLOUCESTER,REDACTED,471*********6962,5331,VARIETY STORES,5.99,Pound Sterling (826),1,5.99,Debit,74697056223030235867978,2016-09-02,GLOUCESTER CC
Gloucester City Council,23UE,GUILDHALL BAR AND CAF�,LA210,OPERATIONAL EQUIPMENT <5000,5012,2016-08-12,2016-08-11,ASDA SUPERSTORE,GLOUCESTER,REDACTED,471*********6962,5411,GROCERY STORES  SUPERMARKETS,3,Pound Sterling (826),1,3,Debit,74698176225050144599655,2016-09-02,GLOUCESTER CC
Gloucester City Council,23UE,GLOUCESTER GUILDHALL,LA100,GENERAL REPAIR/MAINT BUILDINGS,3000,2016-08-12,2016-08-11,WILKO RETAIL LIMIT,GLOUCESTER 14,REDACTED,471*********6962,5722,HOUSEHOLD APPLIANCE STORES,9.95,Pound Sterling (826),1,9.95,Debit,74579156225001370903646,2016-09-02,GLOUCESTER CC
Gloucester City Council,23UE,GLOUCESTER GUILDHALL,LA100,GENERAL REPAIR/MAINT BUILDINGS,3000,2016-08-12,2016-08-10,PAYPAL *CRICKLEWOOD,2084520161,REDACTED,471*********6962,4812,TELECOMMUNICATION EQUIPMENT INCLUDING TELEPHONE SALES,20.94,Pound Sterling (826),1,20.94,Debit,74998866224631221972990,2016-09-02,GLOUCESTER CC
Gloucester City Council,23UE,GLOUCESTER GUILDHALL,LA100,GENERAL REPAIR/MAINT BUILDINGS,3000,2016-08-15,2016-08-13,WILKO RETAIL LIMIT,GLOUCESTER 14,REDACTED,471*********6962,5722,HOUSEHOLD APPLIANCE STORES,19.4,Pound Sterling (826),1,19.4,Debit,74579156227009170971562,2016-09-02,GLOUCESTER CC
Gloucester City Council,23UE,GUILDHALL EVENTS,LA200,FEES FOR SERVICES RECEIVED,5350,2016-08-18,2016-08-17,MIPERMIT PARKING-DOM,INTERNET,REDACTED,471*********6962,7523,AUTOMOBILE PARKING LOTS AND GARAGES,10,Pound Sterling (826),1,10,Debit,74745106231090094760768,2016-09-02,GLOUCESTER CC
Gloucester City Council,23UE,GLOUCESTER GUILDHALL,LA100,OPERATIONAL EQUIPMENT <5000,5012,2016-08-24,2016-08-23,BIGDUG LIMITED,GLOUCESTER,REDACTED,471*********6962,5072,HARDWARE EQUIPMENT AND SUPPLIES,228,Pound Sterling (826),1,228,Debit,74830506236174141392304,2016-09-02,GLOUCESTER CC
Gloucester City Council,23UE,GUILDHALL EVENTS,LA200,ADVERTISING AND PUBLICITY,5702,2016-08-25,2016-08-24,WWW.INSTANTPRINT.C,01709 382202,REDACTED,471*********6962,7338,QUICK-COPY AND REPRODUCTION SERVICES,18.99,Pound Sterling (826),1,18.99,Debit,74579156238002375015118,2016-09-02,GLOUCESTER CC
Gloucester City Council,23UE,GLOUCESTER GUILDHALL,LA100,MAINTENANCE OF EQUIPMENT,5030,2016-08-26,2016-08-25,STUDIO SPARES,0208 2089930,REDACTED,471*********6962,5732,ELECTRONIC SALES,66.29,Pound Sterling (826),1,66.29,Debit,74579156239001576086067,2016-09-02,GLOUCESTER CC
Gloucester City Council,23UE,GUILDHALL EVENTS,LA200,ADVERTISING AND PUBLICITY,5702,2016-09-01,2016-08-31,FACEBK V483M9JD72,www.fb.me/ads,REDACTED,471*********6962,7311,ADVERTISING SERVICES,43.68,Pound Sterling (826),1,43.68,Debit,74987506244542877791231,2016-09-02,GLOUCESTER CC
Gloucester City Council,23UE,BLACKFRIARS,LA609,MAINTENANCE OF EQUIPMENT,5030,2016-09-02,2016-08-31,CPC,LEEDS,REDACTED,471*********6962,5065,ELECTRICAL PARTS AND EQUIPMENT,41.83,Pound Sterling (826),1,41.83,Debit,74998866245634801902739,2016-09-02,GLOUCESTER CC
Gloucester City Council,23UE,GLOUCESTER GUILDHALL,LA100,GENERAL REPAIR/MAINT BUILDINGS,3000,2016-09-02,2016-09-01,STUDIO SPARES,0208 2089930,REDACTED,471*********6962,5732,ELECTRONIC SALES,51.75,Pound Sterling (826),1,51.75,Debit,74579156246005670963593,2016-09-02,GLOUCESTER CC
Gloucester City Council,23UE,CLIENT REVS & BENS CONTRACT,RT240,COURT FEES,5358,2016-08-11,2016-08-10,HMCOURTS-SERVICE.G,1452420100,REDACTED,471*********7309,9222,FINES,534,Pound Sterling (826),1,534,Debit,74579156224002770190389,2016-09-02,GLOUCESTER CC
Gloucester City Council,23UE,FINANCIAL SERVICES,RT200,PUBLIC TRANSPORTATION,4061,2016-08-11,2016-08-10,GWR WEBSALES ECOM,SWINDON,REDACTED,471*********7309,4112,PASSENGER RAILWAYS,16.6,Pound Sterling (826),1,16.6,Debit,74424716223160311584517,2016-09-02,GLOUCESTER CC
Gloucester City Council,23UE,FINANCIAL SERVICES,RT200,PUBLIC TRANSPORTATION,4061,2016-08-11,2016-08-10,GWR WEBSALES ECOM,SWINDON,REDACTED,471*********7309,4112,PASSENGER RAILWAYS,72,Pound Sterling (826),1,72,Debit,74424716223160311600503,2016-09-02,GLOUCESTER CC
Gloucester City Council,23UE,GF BALANCE SHEET,ZX100,PROFESSIONAL SUBSCRIPTION LOAN,0189,2016-08-12,2016-08-11,WWW.AAT-ORG.UK,LONDON EC1R,REDACTED,471*********7309,8931,ACCOUNTING  AUDITING AND BOOKKEEPING SERVICES,88,Pound Sterling (826),1,88,Debit,74085326225529000007970,2016-09-02,GLOUCESTER CC
Gloucester City Council,23UE,BUSINESS TRANSFORMATION & TECH,RT700,COMPUTER HARDWARE <5000,5420,2016-08-19,2016-08-18,KENABLE LTD,44174488675,REDACTED,471*********7309,5732,ELECTRONIC SALES,130.48,Pound Sterling (826),1,130.48,Debit,74998766231632091709598,2016-09-02,GLOUCESTER CC
Gloucester City Council,23UE,FINANCIAL SERVICES,RT200,VOCATIONAL TRAINING,2970,2016-08-24,2016-08-23,WWW.AAT-ORG.UK,LONDON EC1R,REDACTED,471*********7309,8931,ACCOUNTING  AUDITING AND BOOKKEEPING SERVICES,90,Pound Sterling (826),1,90,Debit,74085326237529000007240,2016-09-02,GLOUCESTER CC
Gloucester City Council,23UE,CLIENT REVS & BENS CONTRACT,RT240,FEES FOR SERVICES RECEIVED,5350,2016-08-24,2016-08-23,WWW.GOV.UK,C@HMCTS.GSI.G,REDACTED,471*********7309,8999,PROFESSIONAL SERVICES NOT ELSEWHERE CLASSIFIED,10,Pound Sterling (826),1,10,Debit,74579156237000370584642,2016-09-02,GLOUCESTER CC
Gloucester City Council,23UE,CORPORATE EXPENSES,RC110,SUBSCRIPTIONS,5600,2016-08-24,2016-08-23,SurveyMonkey,Dublin,REDACTED,471*********7309,7372,COMPUTER AND DATA PROCESSING SERVICES,300,Pound Sterling (826),1,300,Debit,74987506236498756011136,2016-09-02,GLOUCESTER CC
Gloucester City Council,23UE,BUSINESS TRANSFORMATION & TECH,RT700,COMPUTER HARDWARE <5000,5420,2016-09-02,2016-09-01,KENABLE LTD,44174488675,REDACTED,471*********7309,5732,ELECTRONIC SALES,64.44,Pound Sterling (826),1,64.44,Debit,74998866245634805808338,2016-09-02,GLOUCESTER CC
Gloucester City Council,23UE,CLIENT REVS & BENS CONTRACT,RT240,COURT FEES,5358,2016-09-02,2016-09-01,HMCOURTS-SERVICE.G,1452420100,REDACTED,471*********7309,9222,FINES,3375,Pound Sterling (826),1,3375,Debit,74579156246000975301193,2016-09-02,GLOUCESTER CC
